[Event "Paracin Open 2022"]
[Site "Paracin"]
[Date "2022.07.11"]
[Round "4.14"]
[White "Gundavaa, Bayarsaikhan"]
[Black "Cilek, Bora"]
[Result "1-0"]
[ECO "E05"]
[WhiteElo "2503"]
[BlackElo "2238"]
[Annotator "ChessBase"]
[PlyCount "75"]
[EventDate "2022.07.08"]
[EventCountry "SRB"]
[SourceTitle "playchess.com"]
[Source "ChessBase"]
[SourceQuality "1"]
[TimeControl "5400+30"]

1. d4 {[%emt 0:00:26]} Nf6 {[%emt 0:00:07]} 2. c4 {[%emt 0:00:11]} e6 {[%emt 0:00:04]} 3. g3 {[%emt 0:01:01]} d5 {[%emt 0:00:32]} 4. Nf3 {[%emt 0:00:15]} Be7 {[%emt 0:00:07]} 5. Bg2 {[%emt 0:00:49]} O-O {[%emt 0:00:07]} 6. Qc2 {[%emt 0:01:03]} dxc4 {[%emt 0:00:44]} 7. Qxc4 {[%emt 0:03:34]} a6 {[%emt 0:02:08]} 8. Qc2 {[%emt 0:02:08]} b5 {[%emt 0:03:02]} 9. O-O {[%emt 0:12:02]} Bb7 {[%emt 0:00:37]} 10. Bd2 {[%emt 0:00:04]} Nc6 {[%emt 0:11:14]} 11. e3 {[%emt 0:01:10]} Nb4 {[%emt 0:01:05]} 12. Bxb4 {[%emt 0:01:47]} Bxb4 {[%emt 0:01:35]} 13. a3 {[%emt 0:00:48]} Bd6 {[%emt 0:06:26]} 14. Nbd2 {[%emt 0:00:26]} Qe7 {[%emt 0:00:17]} 15. Rac1 {[%emt 0:06:53]} Rfc8 {[%emt 0:00:48]} 16. e4 {[%emt 0:24:50]} e5 {[%emt 0:00:07]} 17. dxe5 {[%emt 0:00:08]} Bxe5 {[%emt 0:00:07]} 18. Bh3 {[%emt 0:00:04]} Rd8 {[%emt 0:05:11]} 19. Nxe5 {[%emt 0:01:46]} Qxe5 {[%emt 0:00:02]} 20. Qxc7 {[%emt 0:00:15]} Qxc7 {[%emt 0:04:23]} 21. Rxc7 {[%emt 0:00:06]} Nxe4 {[%emt 0:00:10]} 22. Rxb7 {[%emt 0:04:45]} Nxd2 {[%emt 0:01:58]} 23. Rc1 {[%emt 0:01:32]} Nc4 {[%emt 0:01:15]} 24. Rc2 {[%emt 0:15:15]} g6 {[%emt 0:01:48]} 25. Bf1 {[%emt 0:02:02]} Na5 {[%emt 0:21:46]} 26. Rb6 {[%emt 0:03:46]} Rd4 {[%emt 0:05:00]} 27. Rc7 {[%emt 0:00:58]} Kg7 {[%emt 0:02:34]} 28. Rc3 {[%emt 0:04:21]} Rd7 {[%emt 0:07:07]} 29. b4 {[%emt 0:01:18]} Nb7 {[%emt 0:00:10]} 30. Rcc6 {[%emt 0:02:10]} a5 {[%emt 0:00:35]} 31. Bxb5 {[%emt 0:00:13]} axb4 {[%emt 0:00:31]} 32. axb4 {[%emt 0:01:14]} Ra1+ {[%emt 0:00:06]} 33. Kg2 {[%emt 0:00:05]} Re7 {[%emt 0:00:03]} 34. Rc8 {[%emt 0:00:55]} Rd1 {[%emt 0:01:41]} 35. Rc3 {[%emt 0:05:47]} Rb1 {[%emt 0:00:28]} 36. Bc4 {[%emt 0:01:16]} Rd7 {[%emt 0:02:01]} 37. Rd3 {[%emt 0:00:31]} Rc7 {[%emt 0:00:12]} 38. Ba6 {[%emt 0:00:05]} 1-0

[Event "Paracin Open 2022"]
[Site "Paracin"]
[Date "2022.07.11"]
[Round "4.15"]
[White "Song, Raymond"]
[Black "Mitev, Valentin"]
[Result "1-0"]
[ECO "B80"]
[WhiteElo "2499"]
[BlackElo "2228"]
[Annotator "ChessBase"]
[PlyCount "65"]
[EventDate "2022.07.08"]
[EventCountry "SRB"]
[SourceTitle "playchess.com"]
[Source "ChessBase"]
[SourceQuality "1"]
[TimeControl "5400+30"]

1. e4 {[%emt 0:00:03]} c5 {[%emt 0:00:20]} 2. Nf3 {[%emt 0:00:07]} d6 {[%emt 0:00:20]} 3. d4 {[%emt 0:00:28]} cxd4 {[%emt 0:00:25]} 4. Nxd4 {[%emt 0:00:06]} Nf6 {[%emt 0:00:17]} 5. Nc3 {[%emt 0:00:06]} a6 {[%emt 0:00:26]} 6. Be3 {[%emt 0:00:37]} e6 {[%emt 0:00:23]} 7. a3 {[%emt 0:00:13]} b5 {[%emt 0:04:37]} 8. g4 {[%emt 0:00:07]} Bb7 {[%emt 0:01:23]} 9. Bg2 {[%emt 0:00:06]} d5 {[%emt 0:08:44]} 10. g5 {[%emt 0:14:10]} Nxe4 {[%emt 0:02:54]} 11. Nxe4 {[%emt 0:00:10]} dxe4 {[%emt 0:00:04]} 12. Qg4 {[%emt 0:00:08]} Qa5+ {[%emt 0:14:12]} 13. c3 {[%emt 0:08:35]} Nd7 {[%emt 0:21:37]} 14. Bxe4 {[%emt 0:00:24]} Qc7 {[%emt 0:10:31]} 15. O-O-O {[%emt 0:01:48]} Nc5 {[%emt 0:06:05]} 16. Bf4 {[%emt 0:07:43]} Qb6 {[%emt 0:00:05]} 17. Bxb7 {[%emt 0:01:58]} Qxb7 {[%emt 0:00:41]} 18. Rhe1 {[%emt 0:01:01]} O-O-O {[%emt 0:08:50]} 19. b4 {[%emt 0:01:17]} Rxd4 {[%emt 0:06:47]} 20. cxd4 {[%emt 0:00:27]} Ne4 {[%emt 0:00:09]} 21. Kb2 {[%emt 0:03:15]} Qd5 {[%emt 0:02:38]} 22. Qf3 {[%emt 0:00:51]} Nd6 {[%emt 0:00:10]} 23. Qxd5 {[%emt 0:00:04]} exd5 {[%emt 0:00:04]} 24. Kb3 {[%emt 0:00:03]} f6 {[%emt 0:01:43]} 25. Rc1+ {[%emt 0:01:44]} Kd7 {[%emt 0:01:58]} 26. Rc5 {[%emt 0:00:56]} Be7 {[%emt 0:01:35]} 27. gxf6 {[%emt 0:00:38]} gxf6 {[%emt 0:00:14]} 28. Rxd5 {[%emt 0:00:20]} Rg8 {[%emt 0:00:30]} 29. Bg3 {[%emt 0:01:53]} Rg4 {[%emt 0:02:09]} 30. h3 {[%emt 0:00:13]} Rg8 {[%emt 0:00:31]} 31. a4 {[%emt 0:00:15]} bxa4+ {[%emt 0:02:46]} 32. Kxa4 {[%emt 0:00:07]} Rd8 {[%emt 0:00:03]} 33. Rxe7+ {[%emt 0:00:21]} 1-0

[Event "Paracin Open 2022"]
[Site "Paracin"]
[Date "2022.07.11"]
[Round "4.16"]
[White "Ojas Kulkarni"]
[Black "Makhnev, Denis"]
[Result "0-1"]
[ECO "D27"]
[WhiteElo "2244"]
[BlackElo "2492"]
[Annotator "ChessBase"]
[PlyCount "66"]
[EventDate "2022.07.08"]
[EventCountry "SRB"]
[SourceTitle "playchess.com"]
[Source "ChessBase"]
[SourceQuality "1"]
[TimeControl "5400+30"]

1. d4 {[%emt 0:00:03]} d5 {[%emt 0:00:19]} 2. c4 {[%emt 0:00:08]} dxc4 {[%emt 0:00:04]} 3. e3 {[%emt 0:00:09]} e6 {[%emt 0:01:49]} 4. Bxc4 {[%emt 0:00:08]} Nf6 {[%emt 0:00:04]} 5. Nf3 {[%emt 0:00:16]} c5 {[%emt 0:00:07]} 6. O-O {[%emt 0:00:23]} a6 {[%emt 0:00:16]} 7. a4 {[%emt 0:09:22]} Nc6 {[%emt 0:10:00]} 8. Qe2 {[%emt 0:02:21]} cxd4 {[%emt 0:05:26]} 9. Rd1 {[%emt 0:00:21]} Be7 {[%emt 0:00:38]} 10. Nc3 {[%emt 0:04:06]} O-O {[%emt 0:01:30]} 11. Nxd4 {[%emt 0:04:35]} Qc7 {[%emt 0:06:13]} 12. Nxc6 {[%emt 0:20:48]} Qxc6 {[%emt 0:00:05]} 13. e4 {[%emt 0:00:16]} b6 {[%emt 0:00:22]} 14. Bg5 {[%emt 0:01:15]} h6 {[%emt 0:02:48]} 15. Nd5 {[%emt 0:02:01]} exd5 {[%emt 0:03:58]} 16. Bxd5 {[%emt 0:04:22]} Bg4 {[%emt 0:00:06]} 17. Qe1 {[%emt 0:10:44]} Qe8 {[%emt 0:02:35]} 18. Bxf6 {[%emt 0:00:32]} Bxf6 {[%emt 0:00:17]} 19. f3 {[%emt 0:00:10]} Be6 {[%emt 0:00:41]} 20. Bxa8 {[%emt 0:00:26]} Qxa8 {[%emt 0:00:09]} 21. Qb4 {[%emt 0:02:06]} Qb8 {[%emt 0:02:43]} 22. g3 {[%emt 0:05:55]} a5 {[%emt 0:01:09]} 23. Qb5 {[%emt 0:00:46]} Be7 {[%emt 0:01:00]} 24. Rac1 {[%emt 0:01:17]} Bc5+ {[%emt 0:00:24]} 25. Kg2 {[%emt 0:00:09]} Qe5 {[%emt 0:00:31]} 26. Rc2 {[%emt 0:03:50]} f5 {[%emt 0:02:42]} 27. Re2 {[%emt 0:09:02]} fxe4 {[%emt 0:00:37]} 28. Rxe4 {[%emt 0:00:18]} Qh5 {[%emt 0:00:32]} 29. g4 {[%emt 0:01:33]} Qf7 {[%emt 0:00:10]} 30. Qd3 {[%emt 0:00:27]} Kh8 {[%emt 0:00:34]} 31. Re5 {[%emt 0:05:18]} Qf6 {[%emt 0:03:35]} 32. Rde1 {[%emt 0:01:32]} Bc4 {[%emt 0:00:58]} 33. Qe4 {[%emt 0:01:25]} Bd6 {[%emt 0:00:19]} 0-1

[Event "Paracin Open 2022"]
[Site "Paracin"]
[Date "2022.07.11"]
[Round "4.17"]
[White "Ristic, Luka"]
[Black "Aditya Mittal"]
[Result "0-1"]
[ECO "B23"]
[WhiteElo "2243"]
[BlackElo "2480"]
[Annotator "ChessBase"]
[PlyCount "54"]
[EventDate "2022.07.08"]
[EventCountry "SRB"]
[SourceTitle "playchess.com"]
[Source "ChessBase"]
[SourceQuality "1"]
[TimeControl "5400+30"]

1. e4 {[%emt 0:00:04]} c5 {[%emt 0:00:07]} 2. Nc3 {[%emt 0:00:05]} d6 {[%emt 0:00:11]} 3. d4 {[%emt 0:00:19]} cxd4 {[%emt 0:00:04]} 4. Qxd4 {[%emt 0:00:04]} Nc6 {[%emt 0:00:03]} 5. Qd2 {[%emt 0:00:05]} g6 {[%emt 0:00:04]} 6. b3 {[%emt 0:00:17]} Bh6 {[%emt 0:00:05]} 7. f4 {[%emt 0:00:10]} f5 {[%emt 0:00:04]} 8. Bb2 {[%emt 0:00:39]} Nf6 {[%emt 0:00:03]} 9. O-O-O {[%emt 0:01:26]} fxe4 {[%emt 0:01:31]} 10. Nge2 {[%emt 0:08:21]} Be6 {[%emt 0:05:20]} 11. Nxe4 {[%emt 0:06:52]} Nxe4 {[%emt 0:05:17]} 12. Qe3 {[%emt 0:00:08]} Rf8 {[%emt 0:07:05]} 13. Qxe4 {[%emt 0:00:08]} Bf5 {[%emt 0:00:04]} 14. Qe3 {[%emt 0:20:07]} Rc8 {[%emt 0:19:08]} 15. Kb1 {[%emt 0:20:17]} Qa5 {[%emt 0:04:34]} 16. a3 {[%emt 0:08:14]} Bxc2+ {[%emt 0:01:58]} 17. Kc1 {[%emt 0:04:50]} Ne5 {[%emt 0:04:51]} 18. Bc3 {[%emt 0:07:25]} Bxd1 {[%emt 0:05:47]} 19. Kxd1 {[%emt 0:00:09]} Qd5+ {[%emt 0:02:26]} 20. Kc2 {[%emt 0:01:12]} Ng4 {[%emt 0:01:31]} 21. Qh3 {[%emt 0:08:02]} Qf5+ {[%emt 0:01:30]} 22. Kb2 {[%emt 0:01:09]} Nf2 {[%emt 0:00:43]} 23. Qxh6 {[%emt 0:02:13]} Nd1+ {[%emt 0:00:05]} 24. Ka1 {[%emt 0:02:08]} Nxc3 {[%emt 0:00:06]} 25. Nxc3 {[%emt 0:00:23]} Rxc3 {[%emt 0:00:05]} 26. Bc4 {[%emt 0:00:52]} Qxf4 {[%emt 0:00:33]} 27. Qxh7 {[%emt 0:02:39]} Rc1+ {[%emt 0:00:04]} 0-1

[Event "Paracin Open 2022"]
[Site "Paracin"]
[Date "2022.07.11"]
[Round "4.18"]
[White "Durak, Can"]
[Black "Nitish Belurkar"]
[Result "0-1"]
[ECO "E51"]
[WhiteElo "2221"]
[BlackElo "2460"]
[Annotator "ChessBase"]
[PlyCount "103"]
[EventDate "2022.07.08"]
[EventCountry "SRB"]
[SourceTitle "playchess.com"]
[Source "ChessBase"]
[SourceQuality "1"]
[TimeControl "5400+30"]

1. d4 {[%emt 0:00:14]} Nf6 {[%emt 0:00:08]} 2. c4 {[%emt 0:00:55]} e6 {[%emt 0:00:06]} 3. Nc3 {[%emt 0:01:50]} Bb4 {[%emt 0:00:07]} 4. e3 {[%emt 0:02:46]} O-O {[%emt 0:00:18]} 5. Bd2 {[%emt 0:01:46]} d5 {[%emt 0:00:50]} 6. Nf3 {[%emt 0:01:08]} b6 {[%emt 0:00:13]} 7. Rc1 {[%emt 0:01:16]} Bb7 {[%emt 0:00:45]} 8. cxd5 {[%emt 0:03:20]} exd5 {[%emt 0:00:08]} 9. Be2 {[%emt 0:02:39]} Re8 {[%emt 0:02:33]} 10. Ne5 {[%emt 0:01:23]} Bf8 {[%emt 0:00:38]} 11. O-O {[%emt 0:00:17]} c5 {[%emt 0:00:13]} 12. f4 {[%emt 0:05:07]} Nc6 {[%emt 0:00:11]} 13. Bb5 {[%emt 0:03:48]} Qd6 {[%emt 0:08:58]} 14. Qa4 {[%emt 0:05:11]} Rec8 {[%emt 0:06:51]} 15. Be1 {[%emt 0:04:34]} a6 {[%emt 0:06:07]} 16. Bxc6 {[%emt 0:11:40]} Bxc6 {[%emt 0:00:01]} 17. Nxc6 {[%emt 0:00:12]} b5 {[%emt 0:05:02]} 18. Qd1 {[%emt 0:03:22]} Qxc6 {[%emt 0:03:09]} 19. dxc5 {[%emt 0:07:50]} Bxc5 {[%emt 0:00:16]} 20. Bf2 {[%emt 0:00:12]} Qe6 {[%emt 0:05:31]} 21. Qf3 {[%emt 0:05:21]} Ne4 {[%emt 0:07:29]} 22. Rfd1 {[%emt 0:05:44]} Bb4 {[%emt 0:04:54]} 23. Be1 {[%emt 0:04:48]} Bxc3 {[%emt 0:02:22]} 24. Bxc3 {[%emt 0:00:25]} Rc4 {[%emt 0:03:53]} 25. Bd4 {[%emt 0:05:39]} Rac8 {[%emt 0:12:17]} 26. Qf1 {[%emt 0:02:29]} Rc2 {[%emt 0:03:19]} 27. Rxc2 {[%emt 0:03:05]} Rxc2 {[%emt 0:00:14]} 28. Rc1 {[%emt 0:03:04]} Nd2 {[%emt 0:01:51]} 29. Rxc2 {[%emt 0:03:20]} Nxf1 {[%emt 0:00:11]} 30. Kxf1 {[%emt 0:00:02]} h6 {[%emt 0:01:18]} 31. a3 {[%emt 0:00:11]} Qd7 {[%emt 0:04:14]} 32. h3 {[%emt 0:03:32]} g5 {[%emt 0:02:09]} 33. fxg5 {[%emt 0:00:57]} hxg5 {[%emt 0:00:06]} 34. Rf2 {[%emt 0:03:36]} f5 {[%emt 0:00:32]} 35. g3 {[%emt 0:00:30]} f4 {[%emt 0:01:22]} 36. gxf4 {[%emt 0:02:30]} Qxh3+ {[%emt 0:00:06]} 37. Kg1 {[%emt 0:00:29]} g4 {[%emt 0:00:20]} 38. Rh2 {[%emt 0:00:05]} Qg3+ {[%emt 0:00:34]} 39. Rg2 {[%emt 0:00:12]} Qe1+ {[%emt 0:03:41]} 40. Kh2 {[%emt 0:00:18]} Qh4+ {[%emt 0:00:01]} 41. Kg1 {[%emt 0:00:01]} Kf7 {[%emt 0:01:04]} 42. f5 {[%emt 0:01:56]} g3 {[%emt 0:05:00]} 43. Rd2 {[%emt 0:02:15]} Qe4 {[%emt 0:00:44]} 44. f6 {[%emt 0:00:08]} Qf3 {[%emt 0:00:14]} 45. Bc3 {[%emt 0:01:28]} Qxe3+ {[%emt 0:02:25]} 46. Kg2 {[%emt 0:00:05]} d4 {[%emt 0:00:09]} 47. Rxd4 {[%emt 0:00:05]} Qf2+ {[%emt 0:00:07]} 48. Kh3 {[%emt 0:00:01]} Qh2+ {[%emt 0:00:13]} 49. Kg4 {[%emt 0:00:01]} g2 {[%emt 0:00:07]} 50. Rd7+ {[%emt 0:00:03]} Ke6 {[%emt 0:00:12]} 51. Re7+ {[%emt 0:00:03]} Kd5 {[%emt 0:00:06]} 52. Rd7+ {[%emt 0:00:22]} 0-1

[Event "Paracin Open 2022"]
[Site "Paracin"]
[Date "2022.07.11"]
[Round "4.19"]
[White "Agmanov, Zhandos"]
[Black "Kecskemeti, Arpad"]
[Result "1-0"]
[ECO "E73"]
[WhiteElo "2459"]
[BlackElo "2210"]
[Annotator "ChessBase"]
[PlyCount "47"]
[EventDate "2022.07.08"]
[EventCountry "SRB"]
[SourceTitle "playchess.com"]
[Source "ChessBase"]
[SourceQuality "1"]
[TimeControl "5400+30"]

1. d4 {[%emt 0:00:04]} Nf6 {[%emt 0:00:05]} 2. c4 {[%emt 0:00:04]} g6 {[%emt 0:00:17]} 3. Nc3 {[%emt 0:00:03]} Bg7 {[%emt 0:00:21]} 4. e4 {[%emt 0:00:04]} d6 {[%emt 0:00:03]} 5. Be2 {[%emt 0:00:05]} O-O {[%emt 0:01:08]} 6. Be3 {[%emt 0:00:04]} Nbd7 {[%emt 0:00:10]} 7. Qc2 {[%emt 0:02:23]} c6 {[%emt 0:04:23]} 8. h3 {[%emt 0:05:24]} a6 {[%emt 0:05:23]} 9. Nf3 {[%emt 0:00:51]} b5 {[%emt 0:01:47]} 10. a3 {[%emt 0:02:17]} Qc7 {[%emt 0:26:40]} 11. Rc1 {[%emt 0:01:31]} Bb7 {[%emt 0:04:03]} 12. O-O {[%emt 0:06:50]} Rac8 {[%emt 0:06:46]} 13. Rfd1 {[%emt 0:11:13]} Rfd8 {[%emt 0:05:15]} 14. Qb1 {[%emt 0:04:35]} Qb8 {[%emt 0:00:43]} 15. b4 {[%emt 0:01:32]} e5 {[%emt 0:15:04]} 16. dxe5 {[%emt 0:03:33]} dxe5 {[%emt 0:00:18]} 17. Qb3 {[%emt 0:02:41]} Nf8 {[%emt 0:04:17]} 18. Ng5 {[%emt 0:08:44]} Rxd1+ {[%emt 0:02:13]} 19. Rxd1 {[%emt 0:01:23]} Qc7 {[%emt 0:02:31]} 20. Bc5 {[%emt 0:00:34]} Ne8 {[%emt 0:04:38]} 21. cxb5 {[%emt 0:01:09]} axb5 {[%emt 0:03:45]} 22. Bg4 {[%emt 0:04:57]} h6 {[%emt 0:01:36]} 23. Bxf8 {[%emt 0:00:44]} Bxf8 {[%emt 0:01:18]} 24. Nxf7 {[%emt 0:02:28]} 1-0

[Event "Paracin Open 2022"]
[Site "Paracin"]
[Date "2022.07.11"]
[Round "4.20"]
[White "Zajic, Milan"]
[Black "Granovskiy, Alexandr"]
[Result "1-0"]
[ECO "B45"]
[WhiteElo "2431"]
[BlackElo "2177"]
[Annotator "ChessBase"]
[PlyCount "85"]
[EventDate "2022.07.08"]
[EventCountry "SRB"]
[SourceTitle "playchess.com"]
[Source "ChessBase"]
[SourceQuality "1"]
[TimeControl "5400+30"]

1. e4 {[%emt 0:01:57]} c5 {[%emt 0:00:24]} 2. Nf3 {[%emt 0:00:08]} e6 {[%emt 0:00:06]} 3. d4 {[%emt 0:01:25]} cxd4 {[%emt 0:03:41]} 4. Nxd4 {[%emt 0:00:03]} Nf6 {[%emt 0:00:08]} 5. Nc3 {[%emt 0:00:06]} Nc6 {[%emt 0:00:01]} 6. Ndb5 {[%emt 0:07:56]} Bc5 {[%emt 0:01:23]} 7. Bf4 {[%emt 0:00:19]} O-O {[%emt 0:00:13]} 8. Bc7 {[%emt 0:00:13]} Qe7 {[%emt 0:00:21]} 9. Bd6 {[%emt 0:00:21]} Bxd6 {[%emt 0:00:09]} 10. Qxd6 {[%emt 0:00:18]} Qd8 {[%emt 0:00:08]} 11. O-O-O {[%emt 0:09:27]} a6 {[%emt 0:01:20]} 12. Nd4 {[%emt 0:00:38]} Ne7 {[%emt 0:00:39]} 13. g4 {[%emt 0:02:45]} b5 {[%emt 0:06:09]} 14. Bd3 {[%emt 0:05:17]} Bb7 {[%emt 0:05:48]} 15. Rhe1 {[%emt 0:21:16]} Ng6 {[%emt 0:21:01]} 16. f3 {[%emt 0:02:21]} Qb8 {[%emt 0:08:44]} 17. Qg3 {[%emt 0:03:36]} Qxg3 {[%emt 0:13:01]} 18. hxg3 {[%emt 0:41:24]} d6 19. g5 {[%emt 0:00:00]} Nd7 {[%emt 0:00:16]} 20. a3 {[%emt 0:00:00]} Rad8 {[%emt 0:03:44]} 21. Rd2 {[%emt 0:00:00]} Nge5 {[%emt 0:09:31]} 22. Bf1 {[%emt 0:00:00]} Nc4 {[%emt 0:24:43]} 23. Bxc4 {[%emt 0:00:00]} bxc4 {[%emt 0:00:00]} 24. Red1 {[%emt 0:00:00]} Ne5 {[%emt 0:00:00]} 25. Re2 {[%emt 0:00:00]} Rfe8 {[%emt 0:00:00]} 26. Rh1 {[%emt 0:00:00]} Ng6 {[%emt 0:00:00]} 27. Rd1 {[%emt 0:00:00]} Ne5 {[%emt 0:00:00]} 28. Red2 {[%emt 0:00:00]} f6 {[%emt 0:00:00]} 29. gxf6 {[%emt 0:00:00]} gxf6 {[%emt 0:00:00]} 30. f4 {[%emt 0:00:00]} Ng4 {[%emt 0:00:00]} 31. f5 {[%emt 0:00:00]} Bc8 {[%emt 0:04:30]} 32. fxe6 {[%emt 0:00:00]} Bxe6 {[%emt 0:00:00]} 33. Nc6 {[%emt 0:00:00]} Rd7 {[%emt 0:00:00]} 34. Rxd6 {[%emt 0:00:00]} Rxd6 {[%emt 0:00:00]} 35. Rxd6 {[%emt 0:00:00]} Bc8 {[%emt 0:00:00]} 36. Kd2 {[%emt 0:04:20]} Kf7 {[%emt 0:00:00]} 37. Rd4 {[%emt 0:01:18]} Rg8 {[%emt 0:01:01]} 38. Rxc4 {[%emt 0:01:41]} Nh2 {[%emt 0:00:28]} 39. Nd4 {[%emt 0:01:58]} Nf1+ {[%emt 0:00:16]} 40. Ke1 {[%emt 0:00:11]} Nxg3 {[%emt 0:00:08]} 41. Nd5 {[%emt 0:00:54]} Re8 {[%emt 0:00:58]} 42. Rc7+ {[%emt 0:00:25]} Kf8 {[%emt 0:00:05]} 43. Nxf6 {[%emt 0:00:20]} 1-0

[Event "Paracin Open 2022"]
[Site "Paracin"]
[Date "2022.07.12"]
[Round "5.1"]
[White "Koustav Chatterjee"]
[Black "Praggnanandhaa R"]
[Result "0-1"]
[ECO "A28"]
[WhiteElo "2485"]
[BlackElo "2648"]
[Annotator "ChessBase"]
[PlyCount "64"]
[EventDate "2022.07.08"]
[EventCountry "SRB"]
[SourceTitle "playchess.com"]
[Source "ChessBase"]
[SourceQuality "1"]
[TimeControl "5400+30"]

1. c4 {[%emt 0:00:43]} e5 {[%emt 0:00:55]} 2. Nc3 {[%emt 0:00:15]} Nf6 {[%emt 0:00:28]} 3. Nf3 {[%emt 0:00:19]} Nc6 {[%emt 0:00:06]} 4. e3 {[%emt 0:00:27]} Bb4 {[%emt 0:01:05]} 5. Qc2 {[%emt 0:00:11]} Bxc3 {[%emt 0:01:19]} 6. Qxc3 {[%emt 0:00:07]} Qe7 {[%emt 0:00:33]} 7. d4 {[%emt 0:00:40]} e4 {[%emt 0:04:22]} 8. Nd2 {[%emt 0:24:37]} d5 {[%emt 0:03:15]} 9. b3 {[%emt 0:01:31]} O-O {[%emt 0:02:05]} 10. h3 {[%emt 0:08:17]} a5 {[%emt 0:08:11]} 11. Be2 {[%emt 0:06:07]} Re8 {[%emt 0:15:29]} 12. Bb2 {[%emt 0:10:08]} Be6 {[%emt 0:06:42]} 13. O-O {[%emt 0:08:34]} Qd7 {[%emt 0:13:17]} 14. f3 {[%emt 0:20:28]} Bf5 {[%emt 0:04:20]} 15. f4 {[%emt 0:05:48]} Nb4 {[%emt 0:05:22]} 16. Kh2 {[%emt 0:05:42]} Nd3 {[%emt 0:03:56]} 17. Qc2 {[%emt 0:05:06]} Ra6 {[%emt 0:03:39]} 18. Bc3 {[%emt 0:00:00]} h5 {[%emt 0:00:27]} 19. Qd1 {[%emt 0:00:09]} h4 {[%emt 0:08:44]} 20. a3 {[%emt 0:00:40]} Bg6 {[%emt 0:02:23]} 21. Ra2 {[%emt 0:00:32]} a4 {[%emt 0:01:39]} 22. bxa4 {[%emt 0:00:35]} dxc4 {[%emt 0:01:14]} 23. Rc2 {[%emt 0:00:29]} Rxa4 {[%emt 0:00:36]} 24. Nb1 {[%emt 0:00:27]} Nd5 {[%emt 0:01:07]} 25. Bd2 {[%emt 0:00:02]} Bf5 {[%emt 0:00:35]} 26. Bg4 {[%emt 0:00:16]} b5 {[%emt 0:01:00]} 27. Qe2 {[%emt 0:01:10]} Ra6 {[%emt 0:01:01]} 28. Rg1 {[%emt 0:00:22]} Bxg4 {[%emt 0:01:59]} 29. hxg4 {[%emt 0:00:02]} Nf6 {[%emt 0:00:20]} 30. f5 {[%emt 0:01:03]} Nf2 {[%emt 0:00:22]} 31. Rf1 {[%emt 0:00:08]} N6xg4+ {[%emt 0:00:11]} 32. Kg1 {[%emt 0:00:04]} Qd6 {[%emt 0:00:04]} 0-1

[Event "Paracin Open 2022"]
[Site "Paracin"]
[Date "2022.07.12"]
[Round "5.2"]
[White "Predke, Alexandr"]
[Black "Samant Aditya S"]
[Result "1-0"]
[ECO "E11"]
[WhiteElo "2688"]
[BlackElo "2431"]
[Annotator "ChessBase"]
[PlyCount "137"]
[EventDate "2022.07.08"]
[EventCountry "SRB"]
[SourceTitle "playchess.com"]
[Source "ChessBase"]
[SourceQuality "1"]
[TimeControl "5400+30"]

1. d4 {[%emt 0:00:10]} Nf6 {[%emt 0:00:07]} 2. c4 {[%emt 0:00:06]} e6 {[%emt 0:00:03]} 3. Nf3 {[%emt 0:00:04]} Bb4+ {[%emt 0:00:25]} 4. Bd2 {[%emt 0:00:04]} c5 {[%emt 0:00:35]} 5. Bxb4 {[%emt 0:00:17]} cxb4 {[%emt 0:00:06]} 6. g3 {[%emt 0:00:06]} O-O {[%emt 0:00:19]} 7. Bg2 {[%emt 0:00:05]} d6 {[%emt 0:00:55]} 8. O-O {[%emt 0:01:00]} Qc7 {[%emt 0:05:28]} 9. Qd3 {[%emt 0:00:07]} e5 {[%emt 0:04:19]} 10. Nbd2 {[%emt 0:00:34]} Re8 {[%emt 0:02:15]} 11. Ne4 {[%emt 0:00:41]} Nbd7 {[%emt 0:06:12]} 12. Nfd2 {[%emt 0:26:19]} Nxe4 {[%emt 0:29:21]} 13. Nxe4 {[%emt 0:00:34]} f5 {[%emt 0:04:27]} 14. Ng5 {[%emt 0:00:38]} Nf6 {[%emt 0:08:51]} 15. c5 {[%emt 0:00:52]} dxc5 {[%emt 0:14:12]} 16. Rac1 {[%emt 0:07:22]} exd4 {[%emt 0:04:51]} 17. Qb3+ {[%emt 0:01:00]} Kf8 {[%emt 0:01:47]} 18. Rxc5 {[%emt 0:00:21]} Qe7 {[%emt 0:01:02]} 19. Re5 {[%emt 0:13:17]} Qc7 {[%emt 0:00:19]} 20. Qxb4+ {[%emt 0:02:47]} Re7 {[%emt 0:00:05]} 21. Nf3 {[%emt 0:03:29]} a5 {[%emt 0:01:50]} 22. Qxe7+ {[%emt 0:00:36]} Qxe7 {[%emt 0:00:06]} 23. Rxe7 {[%emt 0:00:03]} Kxe7 {[%emt 0:00:02]} 24. Nxd4 {[%emt 0:00:06]} Bd7 {[%emt 0:02:09]} 25. Rc1 {[%emt 0:05:45]} Rc8 {[%emt 0:00:33]} 26. Rxc8 {[%emt 0:00:11]} Bxc8 {[%emt 0:00:02]} 27. e3 {[%emt 0:01:00]} Kd6 {[%emt 0:00:24]} 28. Kf1 {[%emt 0:02:06]} b6 {[%emt 0:00:41]} 29. Ke2 {[%emt 0:01:03]} g6 {[%emt 0:01:32]} 30. Bc6 {[%emt 0:01:52]} Ba6+ {[%emt 0:01:45]} 31. Bb5 {[%emt 0:00:05]} Bb7 {[%emt 0:00:14]} 32. f3 {[%emt 0:00:29]} Bd5 33. a3 {[%emt 0:33:51]} Kc5 {[%emt 0:12:03]} 34. Ba4 {[%emt 0:00:00]} Bc4+ {[%emt 0:00:00]} 35. Kd2 {[%emt 0:01:00]} b5 {[%emt 0:00:00]} 36. Bb3 {[%emt 0:00:00]} a4 37. Bc2 {[%emt 0:01:00]} Nd7 {[%emt 0:02:00]} 38. h3 {[%emt 0:00:00]} Bf1 {[%emt 0:00:00]} 39. g4 {[%emt 0:00:00]} fxg4 {[%emt 0:00:00]} 40. hxg4 {[%emt 0:00:00]} Ne5 {[%emt 0:00:11]} 41. Kc3 {[%emt 0:00:00]} Nc4 {[%emt 0:01:13]} 42. e4 {[%emt 0:00:00]} Nxb2 {[%emt 0:00:12]} 43. Ne6+ {[%emt 0:01:46]} Kd6 {[%emt 0:00:01]} 44. Ng5 {[%emt 0:00:41]} Nc4 {[%emt 0:00:08]} 45. Kb4 {[%emt 0:00:49]} Be2 {[%emt 0:00:17]} 46. f4 {[%emt 0:00:16]} Ne3 {[%emt 0:01:10]} 47. Bb1 {[%emt 0:00:22]} Nxg4 {[%emt 0:01:09]} 48. Nxh7 {[%emt 0:00:02]} Ke7 {[%emt 0:00:35]} 49. e5 {[%emt 0:00:49]} Ne3 {[%emt 0:00:22]} 50. Nf6 {[%emt 0:00:01]} Kf7 {[%emt 0:00:32]} 51. Kc5 {[%emt 0:00:58]} Nc4 {[%emt 0:00:19]} 52. Ba2 {[%emt 0:00:13]} Ke7 {[%emt 0:00:18]} 53. Nd5+ {[%emt 0:00:20]} Kd7 {[%emt 0:00:55]} 54. Nc3 {[%emt 0:01:10]} Bf1 {[%emt 0:00:33]} 55. Nxb5 {[%emt 0:00:04]} Ne3 {[%emt 0:00:16]} 56. Nc3 {[%emt 0:00:48]} Nc2 {[%emt 0:00:17]} 57. Bb1 {[%emt 0:00:57]} Nxa3 {[%emt 0:00:26]} 58. Bxg6 {[%emt 0:00:01]} Nc4 {[%emt 0:00:44]} 59. Nxa4 {[%emt 0:00:15]} Ne3 {[%emt 0:00:38]} 60. Be4 {[%emt 0:00:54]} Ke6 {[%emt 0:00:38]} 61. Kd4 {[%emt 0:00:10]} Ng4 {[%emt 0:00:13]} 62. Nc5+ {[%emt 0:01:00]} Ke7 {[%emt 0:00:00]} 63. f5 {[%emt 0:00:06]} Bh3 {[%emt 0:00:09]} 64. Nd3 {[%emt 0:00:39]} Nh6 {[%emt 0:01:18]} 65. f6+ {[%emt 0:00:05]} Kf7 {[%emt 0:00:04]} 66. Nf4 {[%emt 0:00:22]} Bc8 {[%emt 0:00:06]} 67. Bg6+ {[%emt 0:00:20]} Kf8 {[%emt 0:00:11]} 68. e6 {[%emt 0:00:31]} Ng8 {[%emt 0:00:14]} 69. Ke5 {[%emt 0:00:05]} 1-0